bitfinex-derivatives/quotes_ETHF0:USTF0_20250322
["timestamp","ask_amount","ask_price","bid_price","bid_amount"]
[1742653656900,1.00505,1990.5,1990.4,0.00753636]
[1742653660396,4.21285,1990.5,1990.4,0.00753636]
[1742653660709,1.0052,1990.2,1990.1,3.17]
[1742653661011,1.00525,1990.1,1990.0,8.0366]
[1742653662102,1.00525,1990.1,1990.0,9.3896]
[1742653663209,1.00525,1990.1,1990.0,5.2143]
[1742653664012,1.00525,1990.1,1990.0,2.0065]
[1742653665903,1.00525,1990.1,1989.9,0.64713636]
[1742653665904,1.0053,1990.0,1989.9,0.00753636]
[1742653666111,2.2862,1990.0,1989.9,0.00753636]
[1742653672714,1.0055,1989.6,1989.5,1.2765]
[1742653674007,2.3377,1989.6,1989.5,2.5953]
[1742653675810,2.3377,1989.6,1989.5,1.3188]
[1742653683423,1.0055,1989.6,1989.5,2.32435]
[1742653683725,1.0055,1989.6,1989.5,1.3188]
[1742653689523,1.0055,1989.6,1989.5,2.32435]
[1742653689918,1.0055,1989.6,1989.5,1.3188]
[1742653691130,1.0055,1989.6,1989.5,2.32435]
[1742653693020,1.0055,1989.6,1989.5,1.3188]
[1742653695625,2.3109,1989.6,1989.5,1.3188]
[1742653697231,1.01302636,1989.7,1989.6,1.0055]
[1742653697424,2.36122636,1989.7,1989.6,1.6645]
[1742653697621,0.00753636,1989.7,1989.6,4.8723]
[1742653697941,0.00753636,1989.7,1989.6,6.2307]
[1742653698333,0.00753636,1989.7,1989.6,47.0307]
[1742653700036,0.00753636,1989.7,1989.6,52.9027]
[1742653713056,0.00753636,1989.7,1989.6,15.2737]
[1742653720770,1.3638,1989.8,1989.7,1.00545]
[1742653720965,1.3638,1989.8,1989.7,2.40735]
[1742653721160,1.00513,1990.4,1990.3,1.00513]
[1742653721368,1.00513,1990.4,1990.3,1.00514]
[1742653721866,2.32943,1990.4,1990.3,2.32034]
[1742653722475,3.02993,1990.4,1990.3,2.32034]
[1742653728473,2.0248,1990.4,1990.3,2.32034]
[1742653730177,3.0299,1990.4,1990.3,2.32034]
[1742653733873,2.0248,1990.4,1990.3,2.32034]
[1742653735084,3.0299,1990.4,1990.3,2.32034]
[1742653741978,3.0299,1990.4,1990.3,1.3152]
[1742653743379,3.0299,1990.4,1990.3,2.32035]
[1742653743985,2.0248,1990.4,1990.0,44.0078]
[1742653744284,1.00522,1990.2,1990.1,1.0052]
[1742653744787,1.64292,1990.2,1990.1,1.0052]
[1742653745086,1.64292,1990.2,1990.1,2.3474]
[1742653747487,0.6377,1990.2,1990.1,2.3474]
[1742653747881,1.3627,1990.2,1990.1,2.9937]
[1742653749581,1.3627,1990.2,1990.1,6.2015]
[1742653751485,1.70562,1990.4,1990.3,1.00515]
[1742653751684,2.0841,1990.4,1990.3,4.17515]
[1742653751989,1.3836,1990.4,1990.3,7.38295]
[1742653752287,1.3836,1990.4,1990.3,8.04195]
[1742653756085,2.3887,1990.4,1990.3,8.04195]
[1742653756688,1.3836,1990.4,1990.3,8.04195]
[1742653758194,2.3887,1990.4,1990.3,8.04195]
[1742653758388,1.3836,1990.4,1990.3,8.04195]
[1742653758588,1.3836,1990.4,1990.3,8.69415]
[1742653765598,2.3887,1990.4,1990.3,6.3778]
[1742653765800,3.0271,1990.4,1990.3,6.3778]
[1742653766196,3.0271,1990.4,1990.3,7.7448]
[1742653766598,3.0271,1990.4,1990.3,4.537]
[1742653767802,3.0271,1990.4,1990.3,5.54215]
[1742653770101,2.022,1990.4,1990.3,5.54215]
[1742653770502,3.0271,1990.4,1990.3,5.54215]
[1742653775405,3.0271,1990.4,1990.3,4.537]
[1742653776211,3.0271,1990.4,1990.3,5.54215]
[1742653776507,3.0271,1990.4,1990.3,4.537]
[1742653776912,3.0271,1990.4,1990.3,5.54215]
[1742653777116,3.0271,1990.4,1990.3,4.537]
[1742653777315,3.0271,1990.4,1990.3,1.367]
[1742653786623,1.0052,1990.2,1990.1,1.00522]
[1742653786824,1.0052,1990.2,1990.1,5.46172]
[1742653787025,1.0052,1990.2,1990.1,2.29272]
[1742653787218,3.0891,1990.2,1990.1,2.29272]
[1742653789625,3.0891,1990.2,1990.1,1.2875]
[1742653790623,3.0891,1990.2,1990.1,2.29275]
[1742653791325,2.3883,1990.2,1990.1,2.29275]
[1742653793429,1.0052,1990.2,1990.1,2.29275]
[1742653794027,1.00519,1990.3,1990.2,1.00516]
[1742653794227,1.00519,1990.3,1990.2,4.87616]
[1742653797028,1.00519,1990.3,1990.2,6.15066]
[1742653800939,1.00519,1990.3,1990.2,5.1455]
[1742653801131,1.00519,1990.3,1990.2,6.1507]
[1742653810953,2.27529,1990.3,1990.2,6.1507]
[1742653812558,2.27529,1990.3,1990.2,5.1455]
[1742653814458,2.27529,1990.3,1990.2,1.2745]
[1742653814654,2.92189,1990.3,1990.2,4.4435]
[1742653817359,2.92189,1990.3,1990.2,3.169]
[1742653818860,1.0052,1990.2,1990.1,1.3215]
[1742653819060,2.3932,1990.2,1990.1,1.3215]
[1742653820464,1.00535,1989.9,1989.8,5.872]
[1742653820763,1.00535,1989.9,1989.8,4.4569]
[1742653821159,3.07155,1989.9,1989.8,4.4569]
[1742653825456,3.07155,1989.9,1989.8,1.2879]
[1742653825965,4.57967,1989.9,1989.5,3.878]
[1742653826169,3.0763,1989.8,1989.7,1.3139]
[1742653827570,1.0054,1989.8,1989.7,1.3139]
[1742653828072,2.2999,1989.8,1989.7,1.3139]
[1742653828471,2.2999,1989.8,1989.7,1.9766]
[1742653828973,2.2999,1989.8,1989.7,1.3139]
[1742653831373,1.0055,1989.6,1989.4,0.00502426]
[1742653831577,1.0055,1989.6,1989.5,1.4077]
[1742653834575,1.64468,1989.7,1989.6,1.0055]
[1742653834771,1.0055,1989.6,1989.5,2.41321]
[1742653835072,0.6392,1989.7,1989.6,1.00547]
[1742653835073,1.00547,1989.7,1989.6,1.00547]
[1742653835273,1.00547,1989.7,1989.6,3.00357]
[1742653836980,1.00545,1989.8,1989.7,1.00543]
[1742653837180,1.00545,1989.8,1989.7,2.37203]
[1742653839188,1.00545,1989.8,1989.7,1.3666]
[1742653840588,1.0055,1989.6,1989.5,3.17]
[1742653841182,1.0055,1989.6,1989.5,4.17555]
[1742653841488,1.0055,1989.6,1989.5,3.17]
[1742653841883,1.0055,1989.6,1989.5,4.4798]
[1742653842191,1.0055,1989.6,1989.5,5.48535]
[1742653842581,1.0055,1989.6,1989.5,4.4798]
[1742653842986,1.0055,1989.6,1989.5,5.48535]
[1742653843489,1.0055,1989.6,1989.5,4.4798]
[1742653844888,1.0055,1989.6,1989.5,1.3098]
[1742653848391,1.0055,1989.6,1989.5,2.31535]
[1742653848591,1.0055,1989.6,1989.5,1.3098]
[1742653849999,1.0055,1989.6,1989.5,2.31535]
[1742653851092,2.3018,1989.6,1989.5,2.31535]
[1742653852098,2.3018,1989.6,1989.5,1.3098]
[1742653852796,2.3018,1989.6,1989.5,2.31535]
[1742653852997,2.3018,1989.6,1989.5,1.3098]
[1742653853598,2.3018,1989.6,1989.5,2.31535]
[1742653853893,1.00545,1989.7,1989.6,1.00548]
[1742653854097,2.37975,1989.7,1989.6,3.08618]
[1742653854999,1.00545,1989.7,1989.6,3.08618]
[1742653857799,1.00545,1989.7,1989.6,2.0807]
[1742653859197,1.00545,1989.7,1989.6,2.7403]
[1742653861104,1.00545,1989.7,1989.6,1.3911]
[1742653861304,1.68455,1989.7,1989.6,1.3911]
[1742653865303,1.00545,1989.7,1989.6,1.3911]
[1742653867700,1.00545,1989.7,1989.6,2.3966]
[1742653868802,1.00545,1989.7,1989.6,1.3911]
[1742653869398,1.00545,1989.7,1989.6,2.3966]
[1742653869809,1.00545,1989.7,1989.6,1.3911]
[1742653870516,1.00545,1989.7,1989.6,2.3966]
[1742653871505,2.37974,1989.8,1989.7,1.00545]
[1742653871709,2.37974,1989.8,1989.7,3.78015]
[1742653881115,2.37974,1989.8,1989.7,2.7747]
[1742653881315,2.37974,1989.8,1989.7,2.0872]
[1742653881617,2.37974,1989.8,1989.7,3.09265]
[1742653890322,2.37974,1989.8,1989.7,3.09265]
[1742653890818,2.37974,1989.8,1989.7,2.0872]
[1742653891018,2.37974,1989.8,1989.7,3.09265]
[1742653894819,1.3743,1989.8,1989.7,3.09265]
[1742653895219,2.3797,1989.8,1989.7,3.09265]
[1742653898424,1.0054,1989.8,1989.7,3.09265]
[1742653898930,2.2794,1989.8,1989.7,3.09265]
[1742653902132,1.274,1989.8,1989.7,3.09265]
[1742653902521,2.2794,1989.8,1989.7,3.09265]
[1742653903526,1.274,1989.8,1989.7,3.09265]
[1742653903832,2.2794,1989.8,1989.7,3.09265]
[1742653904031,1.274,1989.8,1989.7,3.09265]
[1742653904722,6.9343,1989.9,1989.8,1.0054]
[1742653904928,6.9343,1989.9,1989.8,6.1749]
[1742653904929,8.3157,1989.9,1989.8,6.1749]
[1742653905125,8.0612,1989.9,1989.8,9.3439]
[1742653905427,8.0612,1989.9,1989.8,50.1439]
[1742653905629,7.3337,1989.9,1989.8,50.1439]
[1742653905830,7.3337,1989.9,1989.8,9.3439]
[1742653907622,7.5882,1989.9,1989.8,9.3439]
[1742653908432,8.3157,1989.9,1989.8,9.3439]
[1742653914739,9.32105,1989.9,1989.8,9.3439]
[1742653914937,8.3157,1989.9,1989.8,9.3439]
[1742653917948,8.4462,1989.9,1989.8,9.3439]
[1742653919946,7.0648,1989.9,1989.8,9.3439]
[1742653924952,7.0648,1989.9,1989.8,15.2159]
[1742653925253,3.9802,1989.9,1989.8,15.2159]
[1742653928857,5.2885,1989.9,1989.8,5.5071]
[1742653929061,5.2885,1989.9,1989.8,8.6761]
[1742653929356,6.29385,1989.9,1989.8,7.6707]
[1742653929557,7.68345,1989.9,1989.8,3.2078]
[1742653929859,7.68345,1989.9,1989.7,10.04643]
[1742653929860,1.0054,1989.8,1989.7,10.04643]
[1742653930154,2.395,1989.8,1989.7,6.87743]
[1742653930357,2.395,1989.8,1989.7,6.87745]
[1742653930546,2.395,1989.8,1989.7,5.872]
[1742653932760,4.4052,1989.8,1989.7,5.872]
[1742653932951,5.5175,1989.8,1989.7,5.872]
[1742653933651,6.2449,1989.8,1989.7,5.872]
[1742653934663,1.00545,1989.7,1989.6,5.56375]
[1742653934956,2.38455,1989.7,1989.6,5.56375]
[1742653935561,1.0055,1989.6,1989.5,4.21333]
[1742653935761,3.0726,1989.6,1989.5,8.67743]
[1742653935962,3.7304,1989.6,1989.5,8.67743]
[1742653937058,3.8609,1989.6,1989.5,8.67743]
[1742653938466,3.8609,1989.6,1989.5,5.50843]
[1742653938764,3.8609,1989.6,1989.5,8.67743]
[1742653940069,3.8609,1989.6,1989.5,6.3768]
[1742653940258,3.8609,1989.6,1989.5,3.2078]
[1742653942065,1.00555,1989.5,1989.4,3.17402426]
[1742653942365,2.34205,1989.5,1989.4,0.00502426]
[1742653943464,1.00586,1988.9,1988.8,3.2078]
[1742653943859,1.00596,1988.7,1988.6,4.175]
[1742653944065,1.00596,1988.7,1988.6,4.5696]
[1742653945763,1.00601,1988.6,1988.5,0.00753636]
[1742653945963,3.72451,1988.6,1988.5,0.00753636]
[1742653949361,3.72451,1988.6,1988.3,3.2078]
[1742653949362,1.00611,1988.4,1988.3,3.2078]
[1742653950362,1.00611,1988.4,1988.3,4.5633]
[1742653954667,1.00611,1988.4,1988.3,5.56946]
[1742653955269,1.26081,1988.4,1988.3,5.56946]
[1742653955470,0.2547,1988.4,1988.3,8.74046]
[1742653957361,1.26081,1988.4,1988.3,8.74046]
[1742653957567,0.2547,1988.4,1988.3,8.74046]
[1742653958775,1.1133,1988.4,1988.3,8.74046]
[1742653960180,3.1249,1988.4,1988.3,8.74046]
[1742653960780,3.8527,1988.4,1988.3,8.74046]
[1742653961275,2.78343938,1988.4,1988.3,11.24046]
[1742653961576,1.72673938,1988.4,1988.3,11.24046]
[1742653962377,1.72673938,1988.4,1988.3,8.74046]
[1742653962881,1.72673938,1988.4,1988.3,8.74346]
[1742653963174,1.72673938,1988.4,1988.3,5.56946]
[1742653963374,2.73284938,1988.4,1988.3,8.74346]
[1742653963679,4.02314938,1988.4,1988.3,7.7373]
[1742653963976,3.02421,1988.4,1988.3,7.7373]
[1742653964478,3.02421,1988.4,1988.3,8.74346]
[1742653964681,2.0181,1988.4,1988.3,8.74346]
[1742653964876,3.02421,1988.4,1988.3,8.74346]
[1742653966578,3.15471,1988.4,1988.3,8.74346]
[1742653966879,2.1486,1988.4,1988.3,8.74346]
[1742653968676,0.8583,1988.4,1988.3,8.74346]
[1742653970784,1.86441,1988.4,1988.3,8.74346]
[1742653970971,1.86441,1988.4,1988.3,8.74746]
[1742653971372,2.56011,1988.4,1988.3,7.7413]
[1742653971576,3.93781,1988.4,1988.3,8.74746]
[1742653973086,3.93781,1988.4,1988.3,7.7413]
[1742653974486,3.93781,1988.4,1988.3,8.74746]
[1742653975584,3.93781,1988.4,1988.3,7.7413]
[1742653975986,3.93781,1988.4,1988.3,8.74746]
[1742653976187,3.93781,1988.4,1988.3,7.7413]
[1742653976388,3.93781,1988.4,1988.3,4.5633]
[1742653976590,3.93781,1988.4,1988.3,1.3555]
[1742653978291,1.00616,1988.3,1988.2,3.18]
[1742653978492,2.39436,1988.3,1988.2,3.18]
[1742653978791,1.00621,1988.2,1988.1,1.3657]
[1742653978991,1.00626,1988.1,1988.0,8.04769]
[1742653979193,0.6765,1988.1,1988.0,8.04769]
[1742653979790,2.0647,1988.1,1988.0,8.04769]
[1742653980183,3.07096,1988.1,1988.0,3.8614]
[1742653980389,3.07096,1988.1,1988.0,6.3878]
[1742653980779,3.07096,1988.1,1988.0,3.2078]
[1742653980980,1.00631,1988.0,1987.9,4.18735]
[1742653981185,1.00636,1987.9,1987.8,1.64798]
[1742653981385,1.00636,1987.9,1987.8,4.82798]
[1742653981583,1.00636,1987.9,1987.8,8.03578]
[1742653981791,2.38736,1987.9,1987.8,3.2078]
[1742653981987,2.38736,1987.9,1987.6,87.271]
[1742653981988,1.00646,1987.7,1987.6,45.01429]
[1742653982189,1.00646,1987.7,1987.6,7.39529]
[1742653982391,1.00646,1987.7,1987.6,4.21429]
[1742653982586,2.51806,1987.7,1987.6,7.39529]
[1742653983384,1.5116,1987.7,1987.6,7.39529]
[1742653983594,2.51806,1987.7,1987.6,7.39529]
[1742653984097,1.5116,1987.7,1987.6,7.39529]
[1742653984600,1.5116,1987.7,1987.6,7.39429]
[1742653985501,0.8585,1987.7,1987.6,7.39429]
[1742653985699,2.2407,1987.7,1987.6,7.39429]
[1742653987897,0.8585,1987.7,1987.6,7.39429]
[1742653988089,0.8585,1987.7,1987.6,7.76629]
[1742653991191,0.8585,1987.7,1987.6,49.95779]
[1742653993301,0.8585,1987.7,1987.6,55.82979]
[1742653996707,0.8585,1987.7,1987.6,55.45779]
[1742653999204,0.8585,1987.7,1987.6,52.27779]
[1742653999407,0.8585,1987.7,1987.6,55.45679]
[1742654001610,2.1982,1987.7,1987.6,55.45679]
[1742654002610,2.1982,1987.7,1987.6,14.65679]
[1742654002908,3.20466,1987.7,1987.6,13.6543]
[1742654003111,3.88506,1987.7,1987.6,13.6543]
[1742654003403,3.88506,1987.7,1987.6,12.2628]
[1742654003612,3.88506,1987.7,1987.6,9.055]
[1742654003800,3.88506,1987.7,1987.6,5.872]
[1742654005008,1.00652,1987.6,1987.5,4.4735]
[1742654005310,1.00657,1987.5,1987.4,3.2078]
[1742654005513,1.66327,1987.5,1987.4,3.2078]
[1742654006605,1.00667,1987.3,1987.2,6.3958]
[1742654007203,1.68067,1987.3,1987.2,3.2078]
[1742654007506,1.68067,1987.3,1987.2,2.1506]
[1742654007811,1.00677,1987.1,1987.0,3.2078]
[1742654008012,1.00677,1987.1,1987.0,6.3988]
[1742654008214,2.33527,1987.1,1987.0,6.3988]
[1742654009110,2.46587,1987.1,1987.0,7.6791]
[1742654010901,2.46587,1987.1,1987.0,8.68592]
[1742654011107,2.46587,1987.1,1987.0,7.6791]
[1742654011414,2.46587,1987.1,1987.0,8.68592]
[1742654011617,1.4591,1987.1,1987.0,8.68592]
[1742654012613,0.1306,1987.1,1987.0,8.68592]
[1742654013008,0.1306,1987.1,1987.0,49.48592]
[1742654014412,0.1306,1987.1,1987.0,46.29492]
[1742654014713,0.1306,1987.1,1987.0,49.48592]
[1742654015507,1.4829,1987.1,1987.0,49.48592]
[1742654017813,0.1306,1987.1,1987.0,49.48592]
[1742654018420,0.8584,1987.1,1987.0,49.48592]
[1742654018719,2.9743,1987.4,1987.3,1.00667]
[1742654018720,2.2967,1987.4,1987.3,1.00667]
[1742654018920,2.2967,1987.4,1987.3,7.40447]
[1742654019522,2.2967,1987.4,1987.3,8.67587]
[1742654023725,2.9431,1987.4,1987.3,8.67587]
[1742654025913,2.2967,1987.4,1987.3,8.67587]
[1742654038426,2.2967,1987.4,1987.3,5.48587]
[1742654038625,2.2967,1987.4,1987.3,8.67187]
[1742654039423,2.2967,1987.4,1987.3,5.48587]
[1742654039624,2.2967,1987.4,1987.3,8.67087]
[1742654044733,2.01983636,1987.7,1987.4,2.51647]
[1742654045037,2.01983636,1987.7,1987.6,4.21432]
[1742654045538,0.00753636,1987.7,1987.6,5.52712]
[1742654046235,0.64523636,1987.7,1987.6,5.52712]
[1742654046536,0.00753636,1987.7,1987.6,5.52712]
[1742654047850,1.29563636,1987.7,1987.6,5.52712]
[1742654048243,3.30793636,1987.7,1987.6,5.52712]
[1742654049255,3.30793636,1987.7,1987.6,11.39912]
[1742654053554,2.01983636,1987.7,1987.6,11.39912]
[1742654058955,2.01983636,1987.7,1987.6,57.90312]
[1742654061251,2.65783636,1987.7,1987.6,61.08012]
[1742654061451,2.65783636,1987.7,1987.6,57.90312]
[1742654061650,2.65783636,1987.7,1987.6,61.08012]
[1742654063758,2.65783636,1987.7,1987.6,14.57612]
[1742654074362,2.01983636,1987.7,1987.6,14.57612]
[1742654074766,2.01983636,1987.7,1987.6,15.26432]
[1742654076172,0.6615,1988.0,1987.7,2.51611]
[1742654076468,0.6615,1988.0,1987.9,4.21416]
[1742654076863,1.3718,1988.2,1988.1,1.00626]
[1742654077066,1.3718,1988.2,1988.1,7.38806]
[1742654077257,2.0438,1988.2,1988.1,7.38806]
[1742654077567,2.0438,1988.2,1988.1,48.18806]
[1742654078259,2.0438,1988.2,1988.1,49.53276]
[1742654087275,2.0438,1988.2,1988.1,7.39506]
[1742654089673,3.05001,1988.2,1988.0,0.00753636]
[1742654089873,1.3516,1988.1,1988.0,4.19781636]
[1742654091762,1.3516,1988.1,1988.0,5.51491636]
[1742654092571,1.3516,1988.1,1988.0,4.19781636]
[1742654093769,1.3516,1988.1,1988.0,5.56821636]
[1742654098077,1.3516,1988.1,1988.0,46.36821636]
[1742654098273,0.672,1988.2,1988.1,1.00626]
[1742654098467,2.0118,1988.2,1988.1,5.56066]
[1742654099169,0.71143636,1988.3,1988.2,1.00621]
[1742654099370,0.00753636,1988.3,1988.2,5.54281]
[1742654099566,0.6825,1988.6,1988.5,1.00606]
[1742654099873,1.9055,1988.7,1988.6,1.00601]
[1742654100074,0.6938,1988.8,1988.7,1.00596]
[1742654100377,0.6938,1988.8,1988.7,7.40676]
[1742654100976,0.6938,1988.8,1988.7,8.76656]
[1742654101278,2.6409,1988.8,1988.7,8.76656]
[1742654105077,0.00753636,1988.9,1988.8,1.00591]
[1742654105270,0.00753636,1988.9,1988.8,2.37611]
[1742654110593,0.00753636,1988.9,1988.8,8.24811]
[1742654117882,1.3586,1989.2,1989.1,1.00576]
[1742654118090,1.3586,1989.2,1989.1,7.40256]
[1742654141799,1.3586,1989.2,1989.1,4.19476]
[1742654142899,1.3586,1989.2,1989.1,1.00576]
[1742654143199,1.3586,1989.2,1989.1,4.18776]
[1742654148196,1.3586,1989.2,1989.1,7.39556]
[1742654149202,1.39293636,1989.3,1989.2,1.00571]
[1742654149411,1.39293636,1989.3,1989.2,2.35381]
[1742654152397,3.68009636,1989.3,1989.2,1.00571]
[1742654152901,2.67443636,1989.3,1989.2,1.00571]
[1742654153104,2.67443636,1989.3,1989.2,2.39011]
[1742654155005,3.68009636,1989.3,1989.2,2.39011]
[1742654155615,2.67443636,1989.3,1989.2,2.39011]
[1742654157204,3.68009636,1989.3,1989.2,2.39011]
[1742654159710,3.68009636,1989.3,1989.2,1.3844]
[1742654160007,3.68009636,1989.3,1989.2,2.39011]
[1742654162512,1.00571,1989.2,1989.1,0.00753636]
[1742654162808,2.41191,1989.2,1989.1,1.30833636]
[1742654163408,2.41191,1989.2,1989.1,2.31409636]
[1742654163713,2.41191,1989.2,1989.1,1.30833636]
[1742654164805,2.41191,1989.2,1989.1,2.31409636]
[1742654165211,2.41191,1989.2,1989.1,1.30833636]
[1742654165812,2.41191,1989.2,1989.1,2.31409636]
[1742654167614,2.41191,1989.2,1989.1,1.30833636]
[1742654167815,2.41191,1989.2,1989.1,2.31409636]
[1742654168017,2.41191,1989.2,1989.1,1.30833636]
[1742654168716,2.41191,1989.2,1989.1,2.31409636]
[1742654169018,2.41191,1989.2,1989.1,1.30833636]
[1742654175510,1.00586,1988.9,1988.8,1.00588]
[1742654175710,1.00586,1988.9,1988.8,4.17788]
[1742654176515,2.29306,1989.0,1988.8,4.17788]
[1742654176818,2.29306,1989.0,1988.9,2.41436]
[1742654177019,1.2872,1989.0,1988.9,2.41436]
[1742654177220,0.6501,1989.0,1988.9,3.09716]
[1742654177610,1.64282,1989.2,1989.1,1.00576]
[1742654177911,3.68192,1989.2,1989.1,1.00576]
[1742654178417,1.00576,1989.1,1989.0,2.41427]
[1742654178618,2.39476,1989.1,1989.0,2.41427]
[1742654179318,2.39476,1989.1,1989.0,1.4085]
[1742654179509,2.39476,1989.1,1989.0,2.41431]
[1742654189427,2.4232,1989.1,1989.0,2.41431]
[1742654189623,1.0342,1989.1,1989.0,8.79311]
[1742654189824,1.0342,1989.1,1989.0,9.47361]
[1742654190727,1.0342,1989.1,1989.0,50.27361]
[1742654197624,1.0342,1989.1,1989.0,4.5795]
[1742654197819,2.03996,1989.1,1989.0,4.5795]
[1742654198020,3.44186,1989.1,1989.0,4.5795]
[1742654198928,1.00581,1989.0,1988.8,4.17689]
[1742654199128,1.309,1988.9,1988.8,5.47819]
[1742654199318,2.31486,1988.9,1988.8,2.30719]
[1742654199521,3.71676,1988.9,1988.8,2.30719]
[1742654199922,3.71676,1988.9,1988.8,1.00589]
[1742654200625,3.71676,1988.9,1988.7,2.31474636]
[1742654200832,2.35391,1988.8,1988.7,2.31476636]
[1742654201023,1.348,1988.8,1988.7,2.31479636]
[1742654201223,2.35391,1988.8,1988.7,2.31479636]
[1742654201425,2.35391,1988.8,1988.7,1.30883636]
[1742654201630,2.35391,1988.8,1988.7,0.00753636]
[1742654202226,1.348,1988.8,1988.7,1.01349636]
[1742654202628,2.35391,1988.8,1988.7,1.01349636]
[1742654204732,2.35391,1988.8,1988.7,0.00753636]
[1742654205730,1.348,1988.8,1988.7,1.01349636]
[1742654205935,1.348,1988.8,1988.7,2.29479636]
[1742654206136,1.309,1988.9,1988.8,1.00591]
[1742654206439,1.9364,1988.9,1988.8,2.28721]
[1742654206636,5.968,1989.0,1988.9,1.00586]
[1742654206941,5.968,1989.0,1988.9,2.93686]
[1742654207331,7.3618,1989.0,1988.9,2.93686]
[1742654209243,7.3618,1989.0,1988.9,6.11486]
[1742654209435,8.3957,1989.0,1988.9,6.11486]
[1742654210345,2.4277,1989.0,1988.9,6.11486]
[1742654215247,1.0339,1989.0,1988.9,6.11486]
[1742654218065,1.0339,1989.0,1988.9,9.32266]
[1742654221357,1.0339,1989.0,1988.9,8.68146]
[1742654222369,2.4134,1989.0,1988.9,8.68146]
[1742654226468,3.41921,1989.0,1988.9,3.2078]
[1742654226665,3.41921,1989.0,1988.7,4.19046636]
[1742654226666,2.4134,1989.0,1988.7,4.19046636]
[1742654226866,2.6223,1988.9,1988.7,0.00753636]
[1742654227066,2.29491,1988.8,1988.7,0.00753636]
[1742654227465,2.29491,1988.8,1988.7,1.01349636]
[1742654227665,1.289,1988.8,1988.7,2.40409636]
[1742654229572,2.29491,1988.8,1988.7,2.40409636]
[1742654229774,2.29491,1988.8,1988.7,1.39813636]
[1742654229976,2.29491,1988.8,1988.7,0.00753636]
[1742654232377,1.289,1988.8,1988.7,1.01349636]
[1742654232683,1.3333,1988.9,1988.8,1.00591]
[1742654232980,2.6782,1988.9,1988.8,1.00591]
[1742654233277,2.6782,1988.9,1988.8,2.29041]
[1742654234580,3.68406,1988.9,1988.8,1.2845]
[1742654234786,3.68406,1988.9,1988.8,2.29041]
[1742654234970,3.68406,1988.9,1988.8,1.2845]
[1742654235279,1.00591,1988.8,1988.7,3.18653636]
[1742654235580,2.38011,1988.8,1988.7,0.00753636]
[1742654237378,8.34811,1988.8,1988.7,0.00753636]
[1742654237579,1.00617,1988.3,1988.2,4.19018]
[1742654237781,1.00617,1988.3,1988.2,5.52758]
[1742654238579,1.00617,1988.3,1988.2,4.5214]
[1742654239281,1.00621,1988.2,1988.1,0.40552671]
[1742654239484,6.28751,1988.2,1988.1,0.40552671]
[1742654240779,3.07971,1988.2,1988.1,0.40552671]
[1742654240989,6.28751,1988.2,1988.1,0.40552671]
[1742654241574,1.00636,1987.9,1987.8,3.59160568]
[1742654242287,1.00636,1987.9,1987.8,1.76910568]
[1742654242482,1.3183,1987.9,1987.5,6.3968]
[1742654242675,1.00652,1987.6,1987.5,4.19557]
[1742654242878,1.317,1987.8,1987.5,6.3968]
[1742654243086,2.32468,1987.9,1987.8,1.00641]
[1742654243289,0.6716,1987.9,1987.8,7.40621]
[1742654243490,2.71196,1987.9,1987.8,6.3998]
[1742654243687,2.71196,1987.9,1987.8,7.40621]
[1742654243986,1.7056,1987.9,1987.8,7.40621]
[1742654244183,2.71196,1987.9,1987.8,7.40621]
[1742654244577,4.08586,1987.9,1987.8,7.40621]
[1742654244982,4.08586,1987.9,1987.8,6.3998]
[1742654245187,4.08586,1987.9,1987.8,3.192]
[1742654246992,4.08586,1987.9,1987.8,6.3998]
[1742654251994,2.71196,1987.9,1987.8,7.40621]
[1742654252392,2.71196,1987.9,1987.8,3.192]
[1742654252693,1.034,1987.9,1987.8,7.40621]
[1742654252996,2.04036,1987.9,1987.8,6.3998]
[1742654254295,2.04036,1987.9,1987.8,7.40621]
[1742654254688,1.034,1987.9,1987.8,7.40621]
[1742654260695,0.23713125,1987.9,1987.8,9.90621]
[1742654260994,0.00753636,1988.0,1987.8,9.90621]
[1742654260995,0.00753636,1988.0,1987.9,1.00636]
[1742654261184,1.2805,1988.5,1988.4,1.00611]
[1742654261388,2.28656,1988.5,1988.4,3.196]
[1742654261588,2.28656,1988.5,1988.4,4.20211]
[1742654261895,2.28656,1988.5,1988.4,5.52131]
[1742654262292,2.28656,1988.5,1988.4,4.5152]
[1742654266202,1.00611,1988.4,1988.3,0.00753636]
[1742654266499,2.28951,1988.4,1988.3,0.00753636]
[1742654267196,1.00621,1988.2,1988.1,3.199]
[1742654267401,1.00631,1988.0,1987.9,6.4068]
[1742654267901,1.00631,1988.0,1987.9,3.199]
[1742654268100,1.00631,1988.0,1987.9,4.20536]
[1742654269200,1.66011,1988.0,1987.9,4.20536]
[1742654269896,0.6538,1988.0,1987.9,4.20536]
[1742654270200,1.66011,1988.0,1987.9,4.20536]
[1742654270402,2.34571,1988.0,1987.9,4.20536]
[1742654271603,2.34571,1988.0,1987.9,3.199]
[1742654271805,2.34571,1988.0,1987.9,4.20536]
[1742654272904,2.34571,1988.0,1987.9,3.199]
[1742654273306,2.34571,1988.0,1987.9,4.6036]
[1742654276196,2.34571,1988.0,1987.9,5.60996]
[1742654277211,1.3394,1988.0,1987.9,5.60996]
[1742654277505,2.34571,1988.0,1987.9,5.60996]
[1742654277706,3.63151,1988.0,1987.9,5.60996]
[1742654279010,3.63151,1988.0,1987.9,4.6036]
[1742654279307,1.00641,1987.8,1987.7,3.2078]
[1742654279509,1.00641,1987.8,1987.7,7.41026]